fUSD/lending_fUSD_20240213
["ID","MTS","AMOUNT","RATE_DAILY","PERIOD"]
[313933976,1707838256855,-500.0,0.00028767,2]
[313933977,1707838256865,-500.0,0.00028767,2]
[313933978,1707838256875,-500.0,0.00028767,2]
[313933979,1707838256884,-500.0,0.00028767,2]
[313933980,1707838256894,-500.0,0.00028767,2]
[313933981,1707838256904,-500.0,0.00028767,2]
[313933982,1707838256914,-500.0,0.00028767,2]
[313933983,1707838256925,-500.0,0.00028767,2]
[313933984,1707838256935,-500.0,0.00028767,2]
[313933985,1707838256944,-500.0,0.00028767,2]
[313933986,1707838256954,-527.46936678,0.00028767,2]
[313933987,1707838256963,-500.0,0.00028767,2]
[313933988,1707838256973,-500.0,0.00028767,2]
[313933989,1707838256983,-500.0,0.00028767,2]
[313933990,1707838256992,-510.56733381,0.00028767,2]
[313933991,1707838257001,-500.0,0.00028767,2]
[313933992,1707838257010,-500.0,0.00028767,2]
[313933993,1707838257019,-520.63680003,0.00028767,2]
[313933994,1707838257027,-506.36038587,0.00028767,2]
[313933995,1707838257036,-500.0,0.00028767,2]
[313933996,1707838257045,-500.0,0.00028767,2]
[313933997,1707838257054,-500.0,0.00028767,2]
[313933998,1707838257063,-537.86805442,0.00028767,2]
[313933999,1707838257073,-518.785042,0.00028767,2]
[313934000,1707838257082,-500.0,0.00028767,2]
[313934001,1707838257091,-596.12,0.00028767,2]
[313934002,1707838257101,-500.0,0.00028767,2]
[313934003,1707838257110,-500.0,0.00028767,2]
[313934004,1707838257119,-640.41,0.00028767,2]
[313934005,1707838257128,-500.0,0.00028767,2]
[313934006,1707838257137,-500.0,0.00028767,2]
[313934007,1707838257226,-500.0,0.00028767,2]
[313934008,1707838257243,-500.0,0.00028767,2]
[313934009,1707838257252,-500.0,0.00028767,2]
[313934010,1707838257261,-500.0,0.00028767,2]
[313934011,1707838257270,-500.0,0.00028767,2]
[313934012,1707838257280,-500.0,0.00028767,2]
[313934013,1707838257289,-504.25600578,0.00028767,2]
[313934014,1707838257299,-781.4,0.00028767,2]
[313934015,1707838257308,-500.0,0.00028767,2]
[313934016,1707838257317,-500.0,0.00028767,2]
[313934017,1707838257326,-500.0,0.00028767,2]
[313934018,1707838257335,-529.90996843,0.00028767,2]
[313934019,1707838257345,-500.0,0.00028767,2]
[313934020,1707838257355,-573.57,0.00028767,2]
[313934021,1707838257365,-500.0,0.00028767,2]
[313934022,1707838257374,-511.03632316,0.00028767,2]
[313934023,1707838257382,-500.0,0.00028767,2]
[313934024,1707838257392,-500.0,0.00028767,2]
[313934025,1707838257401,-539.28,0.00028767,2]
[313934026,1707838257410,-500.0,0.00028767,2]
[313934027,1707838257419,-500.0,0.00028767,2]
[313934028,1707838257429,-500.0,0.00028767,2]
[313934029,1707838257440,-500.0,0.00028767,2]
[313934030,1707838257449,-500.0,0.00028767,2]
[313934031,1707838257458,-500.0,0.00028767,2]
[313934032,1707838257467,-500.0,0.00028767,2]
[313934033,1707838257477,-500.0,0.00028767,2]
[313934034,1707838257486,-500.0,0.00028767,2]
[313934035,1707838257495,-500.0,0.00028767,2]
[313934036,1707838257504,-500.0,0.00028767,2]
[313934037,1707838257513,-500.0,0.00028767,2]
[313934038,1707838257523,-2958.35,0.00028767,2]
[313934039,1707838257532,-500.0,0.00028767,2]
[313934040,1707838257541,-500.0,0.00028767,2]
[313934041,1707838257551,-500.0,0.00028767,2]
[313934042,1707838257560,-500.0,0.00028767,2]
[313934043,1707838257570,-807.59,0.00028767,2]
[313934044,1707838257579,-531.23707262,0.00028767,2]
[313934045,1707838257588,-500.0,0.00028767,2]
[313934046,1707838257597,-500.0,0.00028767,2]
[313934047,1707838257607,-500.0,0.00028767,2]
[313934048,1707838257616,-500.0,0.00028767,2]
[313934049,1707838257626,-500.0,0.00028767,2]
[313934050,1707838257635,-500.0,0.00028767,2]
[313934051,1707838257644,-500.0,0.00028767,2]
[313934052,1707838257654,-500.0,0.00028767,2]
[313934053,1707838257663,-500.0,0.00028767,2]
[313934054,1707838257673,-500.0,0.00028767,2]
[313934055,1707838257683,-500.0,0.00028767,2]
[313934056,1707838257692,-500.0,0.00028767,2]
[313934057,1707838257701,-508.28867467,0.00028767,2]
[313934058,1707838257711,-500.0,0.00028767,2]
[313934059,1707838257720,-500.0,0.00028767,2]
[313934060,1707838257730,-500.0,0.00028767,2]
[313934061,1707838257739,-500.0,0.00028767,2]
[313934062,1707838257749,-500.0,0.00028767,2]
[313934063,1707838257759,-516.69155898,0.00028767,2]
[313934064,1707838257769,-504.06037237,0.00028767,2]
[313934065,1707838257779,-500.0,0.00028767,2]
[313934066,1707838257788,-509.05780846,0.00028767,2]
[313934067,1707838257797,-500.0,0.00028767,2]
[313934068,1707838257806,-500.0,0.00028767,2]
[313934069,1707838257815,-503.79362809,0.00028767,2]
[313934070,1707838257824,-500.0,0.00028767,2]
[313934071,1707838257833,-500.0,0.00028767,2]
[313934072,1707838257842,-500.0,0.00028767,2]
[313934073,1707838257855,-507.24509068,0.00028767,2]
[313934074,1707838257864,-500.0,0.00028767,2]
[313934075,1707838257874,-500.0,0.00028767,2]
[313934076,1707838257883,-525.59516531,0.00028767,2]
[313934077,1707838257893,-500.0,0.00028767,2]
[313934078,1707838257902,-500.0,0.00028767,2]
[313934079,1707838257911,-500.0,0.00028767,2]
[313934080,1707838257923,-1000.0,0.00028767,3]
[313934081,1707838257935,-1000.0,0.00028767,3]
[313934082,1707838257945,-500.0,0.00028767,2]
[313934083,1707838257956,-694.5,0.00028767,3]
[313934084,1707838257965,-500.0,0.00028767,2]
[313934085,1707838257975,-500.0,0.00028767,2]
[313934086,1707838257986,-500.0,0.00028767,2]
[313934087,1707838257995,-500.0,0.00028767,2]
[313934088,1707838258005,-500.0,0.00028767,2]
[313934089,1707838258014,-508.9142918,0.00028767,2]
[313934090,1707838258023,-500.0,0.00028767,2]
[313934091,1707838258033,-517.29167441,0.00028767,2]
[313934092,1707838258043,-500.0,0.00028767,2]
[313934093,1707838258052,-500.0,0.00028767,2]
[313934094,1707838258061,-500.0,0.00028767,2]
[313934095,1707838258070,-500.0,0.00028767,2]
[313934096,1707838258079,-500.0,0.00028767,2]
[313934097,1707838258092,-500.0,0.00028767,2]
[313934098,1707838258101,-500.0,0.00028767,2]
[313934099,1707838258110,-500.0,0.00028767,2]
[313934100,1707838258119,-500.0,0.00028767,2]
[313934101,1707838258128,-500.0,0.00028767,2]
[313934102,1707838258137,-500.0,0.00028767,2]
[313934103,1707838258146,-500.0,0.00028767,2]
[313934104,1707838258155,-646.33,0.00028767,2]
[313934105,1707838258165,-500.0,0.00028767,2]
[313934106,1707838258177,-500.0,0.00028767,2]
[313934107,1707838258186,-500.0,0.00028767,2]
[313934108,1707838258195,-500.0,0.00028767,2]
[313934109,1707838258204,-500.0,0.00028767,2]
[313934110,1707838258213,-500.0,0.00028767,2]
[313934111,1707838258223,-500.0,0.00028767,2]
[313934112,1707838258231,-500.0,0.00028767,2]
[313934113,1707838258241,-500.0,0.00028767,2]
[313934114,1707838258250,-529.56878383,0.00028767,2]
[313934115,1707838258259,-527.58012738,0.00028767,2]
[313934116,1707838258269,-500.0,0.00028767,2]
[313934117,1707838258278,-500.0,0.00028767,2]
[313934118,1707838258288,-500.0,0.00028767,2]
[313934119,1707838258297,-500.0,0.00028767,2]
[313934120,1707838258306,-500.0,0.00028767,2]
[313934121,1707838258315,-500.0,0.00028767,2]
[313934122,1707838258325,-500.0,0.00028767,2]
[313934123,1707838258334,-500.0,0.00028767,2]
[313934124,1707838258343,-500.0,0.00028767,2]
[313934125,1707838258354,-610.038738,0.00028767,2]
[313934126,1707838258363,-585.5,0.00028767,2]
[313934127,1707838258373,-500.0,0.00028767,2]
[313934128,1707838258382,-495.66508323,0.00028767,2]
[313934129,1707838258393,-624.37,0.00028767,2]
[313934130,1707838258402,-456.47146896,0.00028767,2]
[313934131,1707838258411,-500.0,0.00028767,2]
[313934132,1707838258421,-500.0,0.00028767,2]
[313934133,1707838258431,-500.0,0.00028767,2]
[313934134,1707838258440,-500.0,0.00028767,2]
[313934135,1707838258449,-500.0,0.00028767,2]
[313934136,1707838258459,-500.0,0.00028767,2]
[313934137,1707838258468,-512.73159638,0.00028767,2]
[313934138,1707838258477,-500.0,0.00028767,2]
[313934139,1707838258487,-500.0,0.00028767,2]
[313934140,1707838258496,-743.67,0.00028767,2]
[313934141,1707838258505,-622.1,0.00028767,2]
[313934142,1707838258514,-500.0,0.00028767,2]
[313934143,1707838258523,-385.84486004,0.00028767,2]
[313934144,1707838258532,-500.0,0.00028767,2]
[313934145,1707838258542,-500.0,0.00028767,2]
[313934146,1707838258552,-500.0,0.00028767,2]
[313934147,1707838258562,-528.43334338,0.00028767,2]
[313934148,1707838258571,-500.0,0.00028767,2]
[313934149,1707838258581,-534.452203,0.00028767,2]
[313934150,1707838258591,-530.95520748,0.00028767,2]
[313934151,1707838258600,-500.0,0.00028767,2]
[313934152,1707838258610,-500.0,0.00028767,2]
[313934153,1707838258619,-500.0,0.00028767,2]
[313934154,1707838258629,-500.0,0.00028767,2]
[313934155,1707838258638,-500.0,0.00028767,2]
[313934156,1707838258647,-500.0,0.00028767,2]
[313934157,1707838258657,-500.0,0.00028767,2]
[313934158,1707838258666,-500.0,0.00028767,2]
[313934159,1707838258682,-500.0,0.00028767,2]
[313934160,1707838258692,-500.0,0.00028767,2]
[313934161,1707838258704,-507.68817658,0.00028767,2]
[313934162,1707838258800,-510.64761894,0.00028767,2]
[313934163,1707838258810,-1059.03,0.00028767,2]
[313934164,1707838258819,-500.0,0.00028767,2]
[313934165,1707838258828,-500.0,0.00028767,2]
[313934166,1707838258837,-503.31514905,0.00028767,2]
[313934167,1707838258846,-500.0,0.00028767,2]
[313934168,1707838258855,-511.85097442,0.00028767,2]
[313934169,1707838258863,-500.0,0.00028767,2]
[313934170,1707838258873,-500.0,0.00028767,2]
[313934171,1707838258882,-500.0,0.00028767,2]
[313934172,1707838258891,-535.72245078,0.00028767,2]
[313934173,1707838258900,-500.0,0.00028767,2]
[313934174,1707838258909,-500.0,0.00028767,2]
[313934175,1707838258919,-500.0,0.00028767,2]
[313934176,1707838258933,-500.0,0.00028767,2]
[313934177,1707838258942,-500.0,0.00028767,2]
[313934178,1707838258951,-500.0,0.00028767,2]
[313934179,1707838258960,-500.0,0.00028767,2]
[313934180,1707838258969,-571.36,0.00028767,2]
[313934181,1707838258978,-500.0,0.00028767,2]
[313934182,1707838258987,-500.0,0.00028767,2]
[313934183,1707838258996,-500.0,0.00028767,2]
[313934184,1707838259005,-500.0,0.00028767,2]
[313934185,1707838259014,-504.70217269,0.00028767,2]
[313934186,1707838259023,-500.0,0.00028767,2]
[313934187,1707838259032,-626.96500216,0.00028767,2]
[313934188,1707838259042,-500.0,0.00028767,2]
[313934189,1707838259051,-500.0,0.00028767,2]
[313934190,1707838259060,-324.48075586,0.00028767,2]
[313934191,1707838259069,-500.0,0.00028767,2]
[313934192,1707838259078,-500.0,0.00028767,2]
[313934193,1707838259088,-500.0,0.00028767,2]
[313934194,1707838259097,-527.36317843,0.00028767,2]
[313934195,1707838259107,-558.26,0.00028767,2]
[313934196,1707838259116,-500.0,0.00028767,2]
[313934197,1707838259125,-500.0,0.00028767,2]
[313934198,1707838259135,-500.0,0.00028767,2]
[313934199,1707838259144,-500.0,0.00028767,2]
[313934200,1707838259153,-500.0,0.00028767,2]
[313934201,1707838259162,-500.0,0.00028767,2]
[313934202,1707838259173,-500.0,0.00028767,2]
[313934203,1707838259182,-500.0,0.00028767,2]
[313934204,1707838259191,-506.68312488,0.00028767,2]
[313934205,1707838259201,-500.0,0.00028767,2]
[313934206,1707838259210,-500.0,0.00028767,2]
[313934207,1707838259219,-500.0,0.00028767,2]
[313934208,1707838259228,-500.0,0.00028767,2]
[313934209,1707838259238,-500.0,0.00028767,2]
[313934210,1707838259247,-500.0,0.00028767,2]
[313934211,1707838259256,-500.0,0.00028767,2]
[313934212,1707838259265,-500.0,0.00028767,2]
[313934213,1707838259274,-500.0,0.00028767,2]
[313934214,1707838259283,-500.0,0.00028767,2]
[313934215,1707838259291,-500.0,0.00028767,2]
[313934216,1707838259300,-500.0,0.00028767,2]
[313934217,1707838259309,-500.0,0.00028767,2]
[313934218,1707838259318,-502.2949922,0.00028767,2]
[313934219,1707838259328,-500.0,0.00028767,2]
[313934220,1707838259337,-533.31463976,0.00028767,2]
[313934221,1707838259347,-500.0,0.00028767,2]
[313934222,1707838259357,-500.0,0.00028767,2]
[313934223,1707838259366,-500.0,0.00028767,2]
[313934224,1707838259374,-506.79,0.00028767,2]
[313934225,1707838259384,-500.0,0.00028767,2]
[313934226,1707838259394,-512.03977177,0.00028767,2]
[313934227,1707838259403,-500.0,0.00028767,2]
[313934228,1707838259413,-500.0,0.00028767,2]
[313934229,1707838259423,-500.0,0.00028767,2]
[313934230,1707838259432,-500.0,0.00028767,2]
[313934231,1707838259441,-500.0,0.00028767,2]
[313934232,1707838259451,-500.0,0.00028767,2]
[313934233,1707838259460,-594.53,0.00028767,2]
[313934234,1707838259469,-527.26066638,0.00028767,2]
[313934235,1707838259478,-500.0,0.00028767,2]
[313934236,1707838259488,-500.0,0.00028767,2]
[313934237,1707838259497,-500.0,0.00028767,2]
[313934238,1707838259507,-500.0,0.00028767,2]
[313934239,1707838259517,-500.0,0.00028767,2]
[313934240,1707838259527,-500.0,0.00028767,2]
[313934241,1707838259536,-295.65834198,0.00028767,2]
[313934242,1707838259545,-500.0,0.00028767,2]
[313934243,1707838259554,-500.0,0.00028767,2]
[313934244,1707838259564,-509.1798294,0.00028767,2]
[313934245,1707838259573,-500.0,0.00028767,2]
[313934246,1707838259582,-500.0,0.00028767,2]
[313934247,1707838259591,-500.0,0.00028767,2]
[313934248,1707838259600,-3000.0,0.000288,2]
[313934249,1707838259609,-3000.0,0.0002881,2]
[313934250,1707838259618,-3000.0,0.0002882,2]
[313934251,1707838259627,-3000.0,0.0002883,2]
[313934252,1707838259636,-3000.0,0.0002884,2]
[313934253,1707838259645,-3000.0,0.0002885,2]
[313934254,1707838259654,-3000.0,0.0002886,2]
[313934255,1707838259663,-3000.0,0.0002887,2]
[313934256,1707838259673,-3000.0,0.0002888,2]
[313934257,1707838259682,-3000.0,0.0002889,2]
[313934258,1707838259691,-3000.0,0.000289,2]
[313934259,1707838259701,-3000.0,0.0002891,2]
[313934260,1707838259710,-5554.692474,0.0002892,2]
[313934261,1707838259720,-1349.02246101,0.0002894,2]
[313934262,1707838259729,-450.0,0.00029,3]
[313934263,1707838259738,-10095.10718366,0.00029026,2]
[313934264,1707838259747,-500.0,0.00029041,2]
[313934265,1707838259756,-500.0,0.00029041,2]
[313934266,1707838259766,-500.0,0.00029041,2]
[313934267,1707838259775,-236.52148483,0.00029041,2]
[313934268,1707838259784,-591.57,0.00029041,2]
[313934269,1707838259793,-547.39378119,0.00029041,2]
[313934270,1707838259802,-500.0,0.00029041,2]
[313934271,1707838259811,-571.35,0.00029041,2]
[313934272,1707838259820,-575.99798967,0.00029041,2]
[313934273,1707838259829,-622.57892035,0.00029041,2]
[313934274,1707838259838,-505.64357446,0.00029041,2]
[313934275,1707838259847,-340.94,0.00029041,2]
[313934276,1707838259856,-500.0,0.00029041,2]
[313934277,1707838259865,-500.0,0.00029041,2]
[313934278,1707838259874,-207.11,0.00029041,2]
[313934279,1707838259883,-408.5879806,0.00029041,2]
[313934280,1707838259892,-252.72684736,0.00029041,2]
[313934281,1707838259901,-172.08,0.00029041,2]
[313934282,1707838259910,-291.56,0.00029041,2]
[313934283,1707838259919,-595.36,0.00029041,2]
[313934284,1707838259929,-500.0,0.00029041,2]
[313934285,1707838259938,-510.17679301,0.00029041,2]
[313934286,1707838259947,-500.0,0.00029041,2]
[313934287,1707838259956,-185.56,0.00029041,2]
[313934288,1707838259965,-323.38260895,0.00029041,2]
[313934289,1707838259974,-171.32,0.00029041,2]
[313934290,1707838259983,-306.28,0.00029041,2]
[313934291,1707838259993,-500.0,0.00029041,2]
[313934292,1707838260001,-309.77,0.00029041,2]
[313934293,1707838260011,-500.0,0.00029041,2]
[313934294,1707838260020,-323.2736408,0.00029041,2]
[313934295,1707838260029,-500.0,0.00029041,2]
[313934296,1707838260039,-500.0,0.00029041,2]
[313934297,1707838260048,-491.03807483,0.00029041,2]
[313934298,1707838260057,-528.60558503,0.00029041,2]
[313934299,1707838260066,-526.35728051,0.00029041,2]
[313934300,1707838260076,-500.0,0.00029041,2]
[313934301,1707838260085,-500.0,0.00029041,2]
[313934302,1707838260094,-500.0,0.00029041,2]
[313934303,1707838260104,-500.0,0.00029041,2]
[313934304,1707838260113,-616.80164549,0.00029041,2]
[313934305,1707838260122,-500.0,0.00029041,2]
[313934306,1707838260212,-500.0,0.00029041,2]
[313934307,1707838260221,-500.0,0.00029041,2]
[313934308,1707838260230,-620.56721398,0.00029041,2]
[313934309,1707838260239,-500.0,0.00029041,2]
[313934310,1707838260248,-500.0,0.00029041,2]
[313934311,1707838260257,-624.31,0.00029041,2]
[313934312,1707838260266,-549.53,0.00029041,2]
[313934313,1707838260276,-475.33,0.00029041,2]
[313934314,1707838260285,-500.0,0.00029041,2]
[313934315,1707838260294,-500.0,0.00029041,2]
[313934316,1707838260303,-500.0,0.00029041,2]
[313934317,1707838260312,-409.32,0.00029041,2]
[313934318,1707838260321,-500.0,0.00029041,2]
[313934319,1707838260330,-500.0,0.00029041,2]
[313934320,1707838260340,-566.64,0.00029041,2]
[313934321,1707838260352,-500.0,0.00029041,2]
[313934322,1707838260361,-408.52,0.00029041,2]
[313934323,1707838260370,-500.0,0.00029041,2]
[313934324,1707838260379,-230.86,0.00029041,2]
[313934325,1707838260388,-523.39,0.00029041,2]
[313934326,1707838260397,-636.75,0.00029041,2]
[313934327,1707838260406,-514.65,0.00029041,2]
[313934328,1707838260415,-182.44,0.00029041,2]
[313934329,1707838260426,-500.0,0.00029041,2]
[313934330,1707838260435,-172.72,0.00029041,2]
[313934331,1707838260444,-500.0,0.00029041,2]
[313934332,1707838260453,-500.0,0.00029041,2]
[313934333,1707838260462,-203.22,0.00029041,2]
[313934334,1707838260471,-500.0,0.00029041,2]
[313934335,1707838260480,-175.74024164,0.00029041,2]
[313934336,1707838260489,-500.0,0.00029041,2]
[313934337,1707838260498,-500.0,0.00029041,2]
[313934338,1707838260508,-500.0,0.00029041,2]
[313934339,1707838260517,-531.13,0.00029041,2]
[313934340,1707838260526,-500.0,0.00029041,2]
[313934341,1707838260536,-500.0,0.00029041,2]
[313934342,1707838260545,-226.82,0.00029041,2]
[313934343,1707838260554,-500.0,0.00029041,2]
[313934344,1707838260563,-500.0,0.00029041,2]
[313934345,1707838260573,-500.0,0.00029041,2]
[313934346,1707838260582,-643.41,0.00029041,2]
[313934347,1707838260591,-502.63,0.00029041,2]
[313934348,1707838260600,-500.0,0.00029041,2]
[313934349,1707838260609,-151.82752414,0.00029041,2]
[313934350,1707838260618,-500.0,0.00029041,2]
[313934351,1707838260627,-234.76,0.00029041,2]
[313934352,1707838260636,-608.06,0.00029041,2]
[313934353,1707838260646,-594.1,0.00029041,2]
[313934354,1707838260655,-500.0,0.00029041,2]
[313934355,1707838260664,-500.0,0.00029041,2]
[313934356,1707838260675,-538.23,0.00029041,2]
[313934357,1707838260684,-500.0,0.00029041,2]
[313934358,1707838260692,-500.0,0.00029041,2]
[313934359,1707838260703,-563.1,0.00029041,2]
[313934360,1707838260712,-500.0,0.00029041,2]
[313934361,1707838260721,-507.47,0.00029041,2]
[313934362,1707838260730,-500.0,0.00029041,2]
[313934363,1707838260740,-500.0,0.00029041,2]
[313934364,1707838260749,-500.0,0.00029041,2]
[313934365,1707838260758,-500.0,0.00029041,2]
[313934366,1707838260767,-500.0,0.00029041,2]
[313934367,1707838260777,-385.75665943,0.00029041,2]
[313934368,1707838260786,-167.20233101,0.00029041,2]
[313934369,1707838260795,-500.0,0.00029041,2]
[313934370,1707838260804,-500.0,0.00029041,2]
[313934371,1707838260813,-500.0,0.00029041,2]
[313934372,1707838260822,-500.0,0.00029041,2]
[313934373,1707838260831,-500.0,0.00029041,2]
[313934374,1707838260840,-500.0,0.00029041,2]
[313934375,1707838260849,-500.0,0.00029041,2]
[313934376,1707838260858,-500.0,0.00029041,2]
[313934377,1707838260867,-500.0,0.00029041,2]
[313934378,1707838260876,-1934.6,0.00029041,2]
[313934379,1707838260885,-500.0,0.00029041,2]
[313934380,1707838260894,-500.0,0.00029041,2]
[313934381,1707838260904,-500.0,0.00029041,2]
[313934382,1707838260913,-500.0,0.00029041,2]
[313934383,1707838260922,-500.0,0.00029041,2]
[313934384,1707838260931,-500.0,0.00029041,2]
[313934385,1707838260940,-500.0,0.00029041,2]
[313934386,1707838260949,-331.06578095,0.00029041,2]
[313934387,1707838260958,-500.0,0.00029041,2]
[313934388,1707838260967,-408.30895845,0.00029041,2]
[313934389,1707838260976,-500.0,0.00029041,2]
[313934390,1707838260985,-500.0,0.00029041,2]
[313934391,1707838260994,-500.0,0.00029041,2]
[313934392,1707838261003,-592.64,0.00029041,2]
[313934393,1707838261012,-500.0,0.00029041,2]
[313934394,1707838261021,-500.0,0.00029041,2]
[313934395,1707838261031,-500.0,0.00029041,2]
[313934396,1707838261040,-500.0,0.00029041,2]
[313934397,1707838261050,-500.0,0.00029041,2]
[313934398,1707838261059,-500.0,0.00029041,2]
[313934399,1707838261069,-500.0,0.00029041,2]
[313934400,1707838261079,-500.0,0.00029041,2]
[313934401,1707838261088,-162.65,0.00029041,2]
[313934402,1707838261098,-641.09,0.00029041,2]
[313934403,1707838261107,-500.0,0.00029041,2]
[313934404,1707838261116,-500.0,0.00029041,2]
[313934405,1707838261126,-193.92,0.00029041,2]
[313934406,1707838261135,-500.0,0.00029041,2]
[313934407,1707838261144,-500.0,0.00029041,2]
[313934408,1707838261153,-212.77748696,0.00029041,2]
[313934409,1707838261163,-509.37,0.00029041,2]
[313934410,1707838261173,-500.0,0.00029041,2]
[313934411,1707838261182,-612.04,0.00029041,2]
[313934412,1707838261193,-152.53,0.00029041,2]
[313934413,1707838261202,-500.0,0.00029041,2]
[313934414,1707838261212,-500.0,0.00029041,2]
[313934415,1707838261221,-500.0,0.00029041,2]
[313934416,1707838261231,-378.23,0.00029041,2]
[313934417,1707838261239,-500.0,0.00029041,2]
[313934418,1707838261248,-500.0,0.00029041,2]
[313934419,1707838261258,-500.0,0.00029041,2]
[313934420,1707838261267,-500.0,0.00029041,2]
[313934421,1707838261278,-500.0,0.00029041,2]
[313934422,1707838261287,-644.79,0.00029041,2]
[313934423,1707838261297,-500.0,0.00029041,2]
[313934424,1707838261306,-500.0,0.00029041,2]
[313934425,1707838261316,-500.0,0.00029041,2]
[313934426,1707838261325,-500.0,0.00029041,2]
[313934427,1707838261339,-160.52,0.00029041,2]
[313934428,1707838261348,-500.0,0.00029041,2]
[313934429,1707838261358,-500.0,0.00029041,2]
[313934430,1707838261368,-214.34,0.00029041,2]
[313934431,1707838261378,-500.0,0.00029041,2]
[313934432,1707838261388,-500.0,0.00029041,2]
[313934433,1707838261397,-500.0,0.00029041,2]
[313934434,1707838261407,-500.0,0.00029041,2]
[313934435,1707838261417,-500.0,0.00029041,2]
[313934436,1707838261431,-609.18,0.00029041,2]
[313934437,1707838261440,-243.61,0.00029041,2]
[313934438,1707838261523,-277.43,0.00029041,2]
[313934439,1707838261539,-500.0,0.00029041,2]
[313934440,1707838261549,-344.38,0.00029041,2]
[313934441,1707838261558,-516.97,0.00029041,2]
[313934442,1707838261568,-500.0,0.00029041,2]
[313934443,1707838261579,-500.0,0.00029041,2]
[313934444,1707838261589,-500.0,0.00029041,2]
[313934445,1707838261598,-278.76,0.00029041,2]
[313934446,1707838261608,-500.0,0.00029041,2]
[313934447,1707838261617,-500.0,0.00029041,2]
[313934448,1707838261627,-188.7077744,0.00029041,2]
[313934449,1707838261637,-500.0,0.00029041,2]
[313934450,1707838261646,-500.0,0.00029041,2]
[313934451,1707838261656,-920.05,0.00029041,2]
[313934452,1707838261665,-500.0,0.00029041,2]
[313934453,1707838261676,-500.0,0.00029041,2]
[313934454,1707838261686,-500.0,0.00029041,2]
[313934455,1707838261695,-503.58097272,0.00029041,2]
[313934456,1707838261705,-500.0,0.00029041,2]
[313934457,1707838261715,-500.0,0.00029041,2]
[313934458,1707838261724,-1567.32,0.00029041,2]
[313934459,1707838261734,-500.0,0.00029041,2]
[313934460,1707838261744,-500.0,0.00029041,2]
[313934461,1707838261754,-500.0,0.00029041,2]
[313934462,1707838261764,-500.0,0.00029041,2]
[313934463,1707838261774,-500.0,0.00029041,2]
[313934464,1707838261784,-500.0,0.00029041,2]
[313934465,1707838261794,-500.0,0.00029041,2]
[313934466,1707838261804,-500.0,0.00029041,2]
[313934467,1707838261814,-500.0,0.00029041,2]
[313934468,1707838261824,-500.0,0.00029041,2]
[313934469,1707838261836,-500.0,0.00029041,2]
[313934470,1707838261845,-500.0,0.00029041,2]
[313934471,1707838261855,-500.0,0.00029041,2]
[313934472,1707838261864,-500.0,0.00029041,2]
[313934473,1707838261874,-500.0,0.00029041,2]
[313934474,1707838261884,-500.0,0.00029041,2]
[313934475,1707838261893,-500.0,0.00029041,2]